Workbook

Sheet Munka1
B1: Tétel | C1: van? | D1: Erő | E1: Iq | F1: Ügy | G1: Eg | H1: Szer
B2: Súlyzó | C2: van | D2: =IF($C2="van",0.3,0) -> 0.3 | M2: van
B3: Napfény karkötő | C3: van | D3: =IF($C$3="van",0.3,0) -> 0.3 | E3: =IF($C$3="van",0.3,0) -> 0.3 | F3: =IF($C$3="van",0.3,0) -> 0.3 | G3: =IF($C$3="van",0.3,0) -> 0.3 | M3: nincs
B4: Optiri agysisak | C4: van | E4: =IF($C4="van",0.3,0) -> 0.3
B5: Optiri agysisak (gnóm) | C5: nincs | E5: =IF($C5="van",0.5,0) -> 0
B6: Eldaran karkötő | C6: van | F6: =IF($C6="van",0.3,0) -> 0.3
B7: Eldaran karkötő (elf) | C7: nincs | F7: =IF($C7="van",0.5,0) -> 0
B8: Trikornis fókusz | C8: van | E8: =IF($C8="van",0.05,0) -> 0.05 | F8: =IF($C8="van",0.05,0) -> 0.05 | G8: =IF($C8="van",0.05,0) -> 0.05
B9: Testépítés szakértelem | C9: 700 | D9: =IF(C9<1,0,IF(C9>620,6.2,C9/100)) -> 6.2
B10: Összesen | D10: =SUM(D8:D9)+D2+IF(D2<0.001,IF(D3>0,D3,0)) -> 6.5 | E10: =E8+IF(E5>0,E5,IF(E3>0,E3,E4)) -> 0.35 | F10: =F8+IF(F7>0,F7,IF(F3>0,F3,F6)) -> 0.35 | G10: =SUM(G2:G9) -> 0.35 | H10: =SUM(H8:H9)+H2+IF(H2<0.001,IF(H3>0,H3,0)) -> 0
B11: 10 TVP mennyinek sz. | D11: =10+10*D2+10*D9+10*D8 -> 75 | E11: =10+10*E10 -> 13.5 | F11: =10+10*F10 -> 13.5 | G11: =10+10*G10 -> 13.5 | H11: =10+10*H10 -> 10
B12: % vissza | D12: =D11/10 -> 7.5 | E12: =E11/10 -> 1.35 | F12: =F11/10 -> 1.35 | G12: =G11/10 -> 1.35 | H12: =H11/10 -> 1
B14: ALAP: | C14: 729 | D14: 368 | E14: 379 | F14: 366 | G14: 456
B15: LEOSZTÁSOK SZÁMA: | C15: =M19 -> 239 | E15: TVP: | F15: =-VLOOKUP(C15,A20:L2300,12,0) -> 404266
B16: VÉGE: | C16: =IF(C15=0,C14,VLOOKUP(C15,A20:G2402,3,0)) -> 490 | D16: =IF(C15=0,D14,VLOOKUP(C15,A20:G2402,4,0)) -> 451 | E16: =IF(C15=0,E14,VLOOKUP(C15,A20:G2402,5,0)) -> 451 | F16: =IF(C15=0,F14,VLOOKUP(C15,A20:G2402,6,0)) -> 450 | G16: =IF(C15=0,G14,VLOOKUP(C15,A20:G2402,7,0)) -> 456
B17: változás: | C17: =C16-C14 -> -239 | D17: =D16-D14 -> 83 | E17: =E16-E14 -> 72 | F17: =F16-F14 -> 84 | G17: =G16-G14 -> 0
I19: =SUM(I21:I1805) -> 610487 | J19: =SUM(J21:J1805) -> 1097917 | K19: =SUM(K21:K1805) -> -487430 | L19: poz: | M19: =VLOOKUP("STOP",M21:N2602,2,0) -> 239
A20: # | B20: Legnagyobb | C20: Erő | D20: Iq | E20: Ügy | F20: Eg | G20: Szer | H20: Legkisebb | I20: TVP legnagyobbra | J20: TVP legkisebbre | K20: balance | L20: Össz | M20: seged | N20: # | O20: max | P20: min | Q20: átlag
A21: alap | B21: =IF(MAX(C21:G21)=C21,$C$20,IF(MAX(C21:G21)=D21,$D$20,IF(MAX(C21:G21)=E21,$E$20,IF(MAX(C21:G21)=F21,$F$20,$G$20)))) -> Erő | C21: =C14 -> 729 | D21: =D14 -> 368 | E21: =E14 -> 379 | F21: =F14 -> 366 | G21: =G14 -> 456 | H21: =IF(MIN(C21:G21)=C21,"Erő",IF(MIN(C21:G21)=D21,"Iq",IF(MIN(C21:G21)=E21,"Ügy",IF(MIN(C21:G21)=F21,"Eg","Szer")))) -> Eg | I21: =ROUNDDOWN(IF(B21=$C$20,C21,IF(B21=$D$20,D21,IF(B21=$E$20,E21,IF(B21=$F$20,F21,G21))))*10/IF(B21=$C$20,IF(C21>700,1.3,HLOOKUP(B21,$D$1:$H$12,12,0)),HLOOKUP(B21,$D$1:$H$12,12,0)),0) -> 5607 | J21: =ROUNDDOWN(IF(H21=$C$20,C21+1,IF(H21=$D$20,D21+1,IF(H21=$E$20,E21+1,IF(H21=$F$20,F21+1,G21+1))))*10/HLOOKUP(H21,$D$1:$H$12,12,0),0) -> 2718 | K21: =I21-J21 -> 2889 | L21: =K21 -> 2889 | M21: =IF(L21<-400000,"STOP",IF(O21<=P21+1,"STOP","OK")) -> OK | N21: =A22 -> 1 | O21: =MAX(C21:G21) -> 729 | P21: =MIN(C21:G21) -> 366 | Q21: =ROUNDDOWN(AVERAGE(C21:G21),0) -> 459
A22: 1 | B22: =IF(MAX(C22:G22)=C22,"Erő",IF(MAX(C22:G22)=D22,"Iq",IF(MAX(C22:G22)=E22,"Ügy",IF(MAX(C22:G22)=F22,"Eg","Szer")))) -> Erő | C22: =IF($B21="Erő",C21-1,IF($H21="Erő",C21+1,C21)) -> 728 | D22: =IF($B21="Iq",D21-1,IF($H21="Iq",D21+1,D21)) -> 368 | E22: =IF($B21="Ügy",E21-1,IF($H21="Ügy",E21+1,E21)) -> 379 | F22: =IF($B21="Eg",F21-1,IF($H21="Eg",F21+1,F21)) -> 367 | G22: =IF($B21="Szer",G21-1,IF($H21="Szer",G21+1,G21)) -> 456 | H22: Eg | I22: =ROUNDDOWN(IF(B22=$C$20,C22,IF(B22=$D$20,D22,IF(B22=$E$20,E22,IF(B22=$F$20,F22,G22))))*10/IF(B22=$C$20,IF(C22>700,1.3,HLOOKUP(B22,$D$1:$H$12,12,0)),HLOOKUP(B22,$D$1:$H$12,12,0)),0) -> 5600 | J22: =ROUNDDOWN(IF(H22=$C$20,C22+1,IF(H22=$D$20,D22+1,IF(H22=$E$20,E22+1,IF(H22=$F$20,F22+1,G22+1))))*10/HLOOKUP(H22,$D$1:$H$12,12,0),0) -> 2725 | K22: =I22-J22 -> 2875 | L22: =K22+L21 -> 5764 | M22: =IF(L22<-400000,"STOP",IF(O22<=P22+1,"STOP","OK")) -> OK | N22: =A23 -> 2 | O22: =MAX(C22:G22) -> 728 | P22: =MIN(C22:G22) -> 367 | Q22: =ROUNDDOWN(AVERAGE(C22:G22),0) -> 459
A23: 2 | B23: =IF(MAX(C23:G23)=C23,"Erő",IF(MAX(C23:G23)=D23,"Iq",IF(MAX(C23:G23)=E23,"Ügy",IF(MAX(C23:G23)=F23,"Eg","Szer")))) -> Erő | C23: 727 | D23: 368 | E23: 379 | F23: 368 | G23: 456 | H23: Iq | I23: 5592 | J23: 2733 | K23: 2859 | L23: 8623 | M23: OK | N23: 3 | O23: 727 | P23: 368 | Q23: 459
A24: 3 | B24: Erő | C24: 726 | D24: 369 | E24: 379 | F24: 368 | G24: 456 | H24: Eg | I24: 5584 | J24: 2733 | K24: 2851 | L24: 11474 | M24: OK | N24: 4 | O24: 726 | P24: 368 | Q24: 459
A25: 4 | B25: Erő | C25: 725 | D25: 369 | E25: 379 | F25: 369 | G25: 456 | H25: Iq | I25: 5576 | J25: 2740 | K25: 2836 | L25: 14310 | M25: OK | N25: 5 | O25: 725 | P25: 369 | Q25: 459
A26: 5 | B26: Erő | C26: 724 | D26: 370 | E26: 379 | F26: 369 | G26: 456 | H26: Eg | I26: 5569 | J26: 2740 | K26: 2829 | L26: 17139 | M26: OK | N26: 6 | O26: 724 | P26: 369 | Q26: 459
A27: 6 | B27: Erő | C27: 723 | D27: 370 | E27: 379 | F27: 370 | G27: 456 | H27: Iq | I27: 5561 | J27: 2748 | K27: =I27-J27 -> 2813 | L27: 19952 | M27: OK | N27: 7 | O27: 723 | P27: 370 | Q27: 459
A28: 7 | B28: Erő | C28: 722 | D28: 371 | E28: 379 | F28: 370 | G28: 456 | H28: Eg | I28: 5553 | J28: 2748 | K28: =I28-J28 -> 2805 | L28: 22757 | M28: OK | N28: 8 | O28: 722 | P28: 370 | Q28: 459
A29: 8 | B29: Erő | C29: 721 | D29: 371 | E29: 379 | F29: 371 | G29: 456 | H29: Iq | I29: 5546 | J29: 2755 | K29: 2791 | L29: 25548 | M29: OK | N29: 9 | O29: 721 | P29: 371 | Q29: 459
A30: 9 | B30: Erő | C30: 720 | D30: 372 | E30: 379 | F30: 371 | G30: 456 | H30: Eg | I30: 5538 | J30: 2755 | K30: =I30-J30 -> 2783 | L30: 28331 | M30: OK | N30: 10 | O30: 720 | P30: 371 | Q30: 459
A31: 10 | B31: Erő | C31: 719 | D31: 372 | E31: 379 | F31: 372 | G31: 456 | H31: Iq | I31: 5530 | J31: 2762 | K31: 2768 | L31: 31099 | M31: OK | N31: 11 | O31: 719 | P31: 372 | Q31: 459
A32: 11 | B32: Erő | C32: 718 | D32: 373 | E32: 379 | F32: 372 | G32: 456 | H32: Eg | I32: 5523 | J32: 2762 | K32: 2761 | L32: 33860 | M32: OK | N32: 12 | O32: 718 | P32: 372 | Q32: 459
A33: 12 | B33: Erő | C33: 717 | D33: 373 | E33: 379 | F33: 373 | G33: 456 | H33: Iq | I33: 5515 | J33: 2770 | K33: 2745 | L33: 36605 | M33: OK | N33: 13 | O33: 717 | P33: 373 | Q33: 459
A34: 13 | B34: Erő | C34: 716 | D34: 374 | E34: 379 | F34: 373 | G34: 456 | H34: Eg | I34: 5507 | J34: 2770 | K34: 2737 | L34: 39342 | M34: OK | N34: 14 | O34: 716 | P34: 373 | Q34: 459
A35: 14 | B35: Erő | C35: 715 | D35: 374 | E35: 379 | F35: 374 | G35: 456 | H35: Iq | I35: 5500 | J35: 2777 | K35: 2723 | L35: 42065 | M35: =IF(L35<-400000,"STOP",IF(O35<=P35+1,"STOP","OK")) -> OK | N35: 15 | O35: 715 | P35: 374 | Q35: 459
A36: 15 | B36: Erő | C36: 714 | D36: 375 | E36: 379 | F36: 374 | G36: 456 | H36: Eg | I36: 5492 | J36: 2777 | K36: 2715 | L36: 44780 | M36: OK | N36: 16 | O36: 714 | P36: 374 | Q36: 459
A37: 16 | B37: Erő | C37: 713 | D37: 375 | E37: 379 | F37: 375 | G37: 456 | H37: Iq | I37: 5484 | J37: 2785 | K37: 2699 | L37: 47479 | M37: OK | N37: 17 | O37: 713 | P37: 375 | Q37: 459
A38: 17 | B38: Erő | C38: 712 | D38: 376 | E38: 379 | F38: 375 | G38: 456 | H38: Eg | I38: 5476 | J38: 2785 | K38: 2691 | L38: 50170 | M38: OK | N38: 18 | O38: 712 | P38: 375 | Q38: 459
A39: 18 | B39: Erő | C39: 711 | D39: 376 | E39: 379 | F39: 376 | G39: 456 | H39: Iq | I39: 5469 | J39: 2792 | K39: 2677 | L39: 52847 | M39: OK | N39: 19 | O39: 711 | P39: 376 | Q39: 459
A40: 19 | B40: Erő | C40: 710 | D40: 377 | E40: 379 | F40: 376 | G40: 456 | H40: Eg | I40: 5461 | J40: 2792 | K40: 2669 | L40: 55516 | M40: OK | N40: 20 | O40: 710 | P40: 376 | Q40: 459
A41: 20 | B41: Erő | C41: 709 | D41: 377 | E41: 379 | F41: 377 | G41: 456 | H41: Iq | I41: 5453 | J41: 2800 | K41: 2653 | L41: 58169 | M41: OK | N41: 21 | O41: 709 | P41: 377 | Q41: 459
A42: 21 | B42: Erő | C42: 708 | D42: 378 | E42: 379 | F42: 377 | G42: 456 | H42: Eg | I42: 5446 | J42: 2800 | K42: 2646 | L42: 60815 | M42: OK | N42: 22 | O42: 708 | P42: 377 | Q42: 459
A43: 22 | B43: Erő | C43: 707 | D43: 378 | E43: 379 | F43: 378 | G43: 456 | H43: Iq | I43: 5438 | J43: 2807 | K43: 2631 | L43: 63446 | M43: OK | N43: 23 | O43: 707 | P43: 378 | Q43: 459
A44: 23 | B44: Erő | C44: 706 | D44: 379 | E44: 379 | F44: 378 | G44: 456 | H44: Eg | I44: 5430 | J44: 2807 | K44: 2623 | L44: 66069 | M44: OK | N44: 24 | O44: 706 | P44: 378 | Q44: 459
A45: 24 | B45: Erő | C45: 705 | D45: 379 | E45: 379 | F45: 379 | G45: 456 | H45: Iq | I45: 5423 | J45: 2814 | K45: 2609 | L45: 68678 | M45: OK | N45: 25 | O45: 705 | P45: 379 | Q45: 459
A46: 25 | B46: Erő | C46: 704 | D46: 380 | E46: 379 | F46: 379 | G46: 456 | H46: Ügy | I46: 5415 | J46: 2814 | K46: 2601 | L46: 71279 | M46: OK | N46: 26 | O46: 704 | P46: 379 | Q46: 459
A47: 26 | B47: Erő | C47: 703 | D47: 380 | E47: 380 | F47: 379 | G47: 456 | H47: Eg | I47: 5407 | J47: 2814 | K47: 2593 | L47: 73872 | M47: OK | N47: 27 | O47: 703 | P47: 379 | Q47: 459
A48: 27 | B48: Erő | C48: 702 | D48: 380 | E48: 380 | F48: 380 | G48: 456 | H48: Iq | I48: 5400 | J48: 2822 | K48: 2578 | L48: 76450 | M48: OK | N48: 28 | O48: 702 | P48: 380 | Q48: 459
A49: 28 | B49: Erő | C49: 701 | D49: 381 | E49: 380 | F49: 380 | G49: 456 | H49: Ügy | I49: 5392 | J49: 2822 | K49: 2570 | L49: 79020 | M49: OK | N49: 29 | O49: 701 | P49: 380 | Q49: 459
A50: 29 | B50: Erő | C50: 700 | D50: 381 | E50: 381 | F50: 380 | G50: 456 | H50: Eg | I50: 933 | J50: 2822 | K50: -1889 | L50: 77131 | M50: OK | N50: 30 | O50: 700 | P50: 380 | Q50: 459
A51: 30 | B51: Erő | C51: 699 | D51: 381 | E51: 381 | F51: 381 | G51: 456 | H51: Iq | I51: 932 | J51: 2829 | K51: -1897 | L51: 75234 | M51: OK | N51: 31 | O51: 699 | P51: 381 | Q51: 459
A52: 31 | B52: Erő | C52: 698 | D52: 382 | E52: 381 | F52: 381 | G52: 456 | H52: Ügy | I52: 930 | J52: 2829 | K52: -1899 | L52: 73335 | M52: OK | N52: 32 | O52: 698 | P52: 381 | Q52: 459
A53: 32 | B53: Erő | C53: 697 | D53: 382 | E53: 382 | F53: 381 | G53: 456 | H53: Eg | I53: 929 | J53: 2829 | K53: -1900 | L53: 71435 | M53: OK | N53: 33 | O53: 697 | P53: 381 | Q53: 459
A54: 33 | B54: Erő | C54: 696 | D54: 382 | E54: 382 | F54: 382 | G54: 456 | H54: Iq | I54: 928 | J54: 2837 | K54: -1909 | L54: 69526 | M54: OK | N54: 34 | O54: 696 | P54: 382 | Q54: 459
A55: 34 | B55: Erő | C55: 695 | D55: 383 | E55: 382 | F55: 382 | G55: 456 | H55: Ügy | I55: 926 | J55: 2837 | K55: -1911 | L55: 67615 | M55: OK | N55: 35 | O55: 695 | P55: 382 | Q55: 459
A56: 35 | B56: Erő | C56: 694 | D56: 383 | E56: 383 | F56: 382 | G56: 456 | H56: Eg | I56: 925 | J56: 2837 | K56: -1912 | L56: 65703 | M56: OK | N56: 36 | O56: 694 | P56: 382 | Q56: 459
A57: 36 | B57: Erő | C57: 693 | D57: 383 | E57: 383 | F57: 383 | G57: 456 | H57: Iq | I57: 924 | J57: 2844 | K57: -1920 | L57: 63783 | M57: OK | N57: 37 | O57: 693 | P57: 383 | Q57: 459
A58: 37 | B58: Erő | C58: 692 | D58: 384 | E58: 383 | F58: 383 | G58: 456 | H58: Ügy | I58: 922 | J58: 2844 | K58: -1922 | L58: 61861 | M58: OK | N58: 38 | O58: 692 | P58: 383 | Q58: 459
A59: 38 | B59: Erő | C59: 691 | D59: 384 | E59: 384 | F59: 383 | G59: 456 | H59: Eg | I59: 921 | J59: 2844 | K59: -1923 | L59: 59938 | M59: OK | N59: 39 | O59: 691 | P59: 383 | Q59: 459
A60: 39 | B60: Erő | C60: 690 | D60: 384 | E60: 384 | F60: 384 | G60: 456 | H60: Iq | I60: 920 | J60: 2851 | K60: -1931 | L60: 58007 | M60: OK | N60: 40 | O60: 690 | P60: 384 | Q60: 459
A61: 40 | B61: Erő | C61: 689 | D61: 385 | E61: 384 | F61: 384 | G61: 456 | H61: Ügy | I61: 918 | J61: 2851 | K61: -1933 | L61: 56074 | M61: OK | N61: 41 | O61: 689 | P61: 384 | Q61: 459
A62: 41 | B62: Erő | C62: 688 | D62: 385 | E62: 385 | F62: 384 | G62: 456 | H62: Eg | I62: 917 | J62: 2851 | K62: -1934 | L62: 54140 | M62: OK | N62: 42 | O62: 688 | P62: 384 | Q62: 459
A63: 42 | B63: Erő | C63: 687 | D63: 385 | E63: 385 | F63: 385 | G63: 456 | H63: Iq | I63: 916 | J63: 2859 | K63: -1943 | L63: 52197 | M63: OK | N63: 43 | O63: 687 | P63: 385 | Q63: 459
A64: 43 | B64: Erő | C64: 686 | D64: 386 | E64: 385 | F64: 385 | G64: 456 | H64: Ügy | I64: 914 | J64: 2859 | K64: -1945 | L64: 50252 | M64: OK | N64: 44 | O64: 686 | P64: 385 | Q64: 459
A65: 44 | B65: Erő | C65: 685 | D65: 386 | E65: 386 | F65: 385 | G65: 456 | H65: Eg | I65: 913 | J65: 2859 | K65: -1946 | L65: 48306 | M65: OK | N65: 45 | O65: 685 | P65: 385 | Q65: 459
A66: 45 | B66: Erő | C66: 684 | D66: 386 | E66: 386 | F66: 386 | G66: 456 | H66: Iq | I66: 912 | J66: 2866 | K66: -1954 | L66: 46352 | M66: OK | N66: 46 | O66: 684 | P66: 386 | Q66: 459
A67: 46 | B67: Erő | C67: 683 | D67: 387 | E67: 386 | F67: 386 | G67: 456 | H67: Ügy | I67: 910 | J67: 2866 | K67: -1956 | L67: 44396 | M67: OK | N67: 47 | O67: 683 | P67: 386 | Q67: 459
A68: 47 | B68: Erő | C68: 682 | D68: 387 | E68: 387 | F68: 386 | G68: 456 | H68: Eg | I68: 909 | J68: 2866 | K68: -1957 | L68: 42439 | M68: OK | N68: 48 | O68: 682 | P68: 386 | Q68: 459
A69: 48 | B69: Erő | C69: 681 | D69: 387 | E69: 387 | F69: 387 | G69: 456 | H69: Iq | I69: 908 | J69: 2874 | K69: -1966 | L69: 40473 | M69: OK | N69: 49 | O69: 681 | P69: 387 | Q69: 459
A70: 49 | B70: Erő | C70: 680 | D70: 388 | E70: 387 | F70: 387 | G70: 456 | H70: Ügy | I70: 906 | J70: 2874 | K70: -1968 | L70: 38505 | M70: OK | N70: 50 | O70: 680 | P70: 387 | Q70: 459
A71: 50 | B71: Erő | C71: 679 | D71: 388 | E71: 388 | F71: 387 | G71: 456 | H71: Eg | I71: 905 | J71: 2874 | K71: -1969 | L71: 36536 | M71: OK | N71: 51 | O71: 679 | P71: 387 | Q71: 459
A72: 51 | B72: Erő | C72: 678 | D72: 388 | E72: 388 | F72: 388 | G72: 456 | H72: Iq | I72: 904 | J72: 2881 | K72: -1977 | L72: 34559 | M72: OK | N72: 52 | O72: 678 | P72: 388 | Q72: 459
A73: 52 | B73: Erő | C73: 677 | D73: 389 | E73: 388 | F73: 388 | G73: 456 | H73: Ügy | I73: 902 | J73: 2881 | K73: -1979 | L73: 32580 | M73: OK | N73: 53 | O73: 677 | P73: 388 | Q73: 459
A74: 53 | B74: Erő | C74: 676 | D74: 389 | E74: 389 | F74: 388 | G74: 456 | H74: Eg | I74: 901 | J74: 2881 | K74: -1980 | L74: 30600 | M74: OK | N74: 54 | O74: 676 | P74: 388 | Q74: 459
A75: 54 | B75: Erő | C75: 675 | D75: 389 | E75: 389 | F75: 389 | G75: 456 | H75: Iq | I75: 900 | J75: 2888 | K75: -1988 | L75: 28612 | M75: OK | N75: 55 | O75: 675 | P75: 389 | Q75: 459
A76: 55 | B76: Erő | C76: 674 | D76: 390 | E76: 389 | F76: 389 | G76: 456 | H76: Ügy | I76: 898 | J76: 2888 | K76: -1990 | L76: 26622 | M76: OK | N76: 56 | O76: 674 | P76: 389 | Q76: 459
A77: 56 | B77: Erő | C77: 673 | D77: 390 | E77: 390 | F77: 389 | G77: 456 | H77: Eg | I77: 897 | J77: 2888 | K77: -1991 | L77: 24631 | M77: OK | N77: 57 | O77: 673 | P77: 389 | Q77: 459
A78: 57 | B78: Erő | C78: 672 | D78: 390 | E78: 390 | F78: 390 | G78: 456 | H78: Iq | I78: 896 | J78: 2896 | K78: -2000 | L78: 22631 | M78: OK | N78: 58 | O78: 672 | P78: 390 | Q78: 459
A79: 58 | B79: Erő | C79: 671 | D79: 391 | E79: 390 | F79: 390 | G79: 456 | H79: Ügy | I79: 894 | J79: 2896 | K79: -2002 | L79: 20629 | M79: OK | N79: 59 | O79: 671 | P79: 390 | Q79: 459
A80: 59 | B80: Erő | C80: 670 | D80: 391 | E80: 391 | F80: 390 | G80: 456 | H80: Eg | I80: 893 | J80: 2896 | K80: -2003 | L80: 18626 | M80: OK | N80: 60 | O80: 670 | P80: 390 | Q80: 459
A81: 60 | B81: Erő | C81: 669 | D81: 391 | E81: 391 | F81: 391 | G81: 456 | H81: Iq | I81: 892 | J81: 2903 | K81: -2011 | L81: 16615 | M81: OK | N81: 61 | O81: 669 | P81: 391 | Q81: 459
A82: 61 | B82: Erő | C82: 668 | D82: 392 | E82: 391 | F82: 391 | G82: 456 | H82: Ügy | I82: 890 | J82: 2903 | K82: -2013 | L82: 14602 | M82: OK | N82: 62 | O82: 668 | P82: 391 | Q82: 459
A83: 62 | B83: Erő | C83: 667 | D83: 392 | E83: 392 | F83: 391 | G83: 456 | H83: Eg | I83: 889 | J83: 2903 | K83: -2014 | L83: 12588 | M83: OK | N83: 63 | O83: 667 | P83: 391 | Q83: 459
A84: 63 | B84: Erő | C84: 666 | D84: 392 | E84: 392 | F84: 392 | G84: 456 | H84: Iq | I84: 888 | J84: 2911 | K84: -2023 | L84: 10565 | M84: OK | N84: 64 | O84: 666 | P84: 392 | Q84: 459
A85: 64 | B85: Erő | C85: 665 | D85: 393 | E85: 392 | F85: 392 | G85: 456 | H85: =IF(MIN(C85:G85)=C85,"Erő",IF(MIN(C85:G85)=D85,"Iq",IF(MIN(C85:G85)=E85,"Ügy",IF(MIN(C85:G85)=F85,"Eg","Szer")))) -> Ügy | I85: 886 | J85: 2911 | K85: -2025 | L85: 8540 | M85: OK | N85: 65 | O85: 665 | P85: 392 | Q85: 459
A86: 65 | B86: Erő | C86: =IF($B85="Erő",C85-1,IF($H85="Erő",C85+1,C85)) -> 664 | D86: =IF($B85="Iq",D85-1,IF($H85="Iq",D85+1,D85)) -> 393 | E86: =IF($B85="Ügy",E85-1,IF($H85="Ügy",E85+1,E85)) -> 393 | F86: =IF($B85="Eg",F85-1,IF($H85="Eg",F85+1,F85)) -> 392 | G86: =IF($B85="Szer",G85-1,IF($H85="Szer",G85+1,G85)) -> 456 | H86: Eg | I86: =ROUNDDOWN(IF(B86=$C$20,C86,IF(B86=$D$20,D86,IF(B86=$E$20,E86,IF(B86=$F$20,F86,G86))))*10/IF(B86=$C$20,IF(C86>700,1.3,HLOOKUP(B86,$D$1:$H$12,12,0)),HLOOKUP(B86,$D$1:$H$12,12,0)),0) -> 885 | J86: =ROUNDDOWN(IF(H86=$C$20,C86+1,IF(H86=$D$20,D86+1,IF(H86=$E$20,E86+1,IF(H86=$F$20,F86+1,G86+1))))*10/HLOOKUP(H86,$D$1:$H$12,12,0),0) -> 2911 | K86: -2026 | L86: =K86+L85 -> 6514 | M86: =IF(L86<-400000,"STOP",IF(O86<=P86+1,"STOP","OK")) -> OK | N86: =A87 -> 66 | O86: =MAX(C86:G86) -> 664 | P86: =MIN(C86:G86) -> 392 | Q86: =ROUNDDOWN(AVERAGE(C86:G86),0) -> 459
A87: 66 | B87: =IF(MAX(C87:G87)=C87,"Erő",IF(MAX(C87:G87)=D87,"Iq",IF(MAX(C87:G87)=E87,"Ügy",IF(MAX(C87:G87)=F87,"Eg","Szer")))) -> Erő | C87: 663 | D87: 393 | E87: 393 | F87: 393 | G87: 456 | H87: Iq | I87: 884 | J87: 2918 | K87: -2034 | L87: 4480 | M87: OK | N87: 67 | O87: 663 | P87: 393 | Q87: 459
A88: 67 | B88: Erő | C88: 662 | D88: 394 | E88: 393 | F88: 393 | G88: 456 | H88: Ügy | I88: 882 | J88: 2918 | K88: -2036 | L88: 2444 | M88: OK | N88: 68 | O88: 662 | P88: 393 | Q88: 459
A89: 68 | B89: Erő | C89: 661 | D89: 394 | E89: 394 | F89: 393 | G89: 456 | H89: Eg | I89: 881 | J89: 2918 | K89: -2037 | L89: 407 | M89: OK | N89: 69 | O89: 661 | P89: 393 | Q89: 459
A90: 69 | B90: Erő | C90: 660 | D90: 394 | E90: 394 | F90: 394 | G90: 456 | H90: Iq | I90: 880 | J90: 2925 | K90: -2045 | L90: -1638 | M90: OK | N90: 70 | O90: 660 | P90: 394 | Q90: 459
A91: 70 | B91: Erő | C91: 659 | D91: 395 | E91: 394 | F91: 394 | G91: 456 | H91: Ügy | I91: 878 | J91: 2925 | K91: -2047 | L91: -3685 | M91: OK | N91: 71 | O91: 659 | P91: 394 | Q91: 459
A92: 71 | B92: Erő | C92: 658 | D92: 395 | E92: 395 | F92: 394 | G92: 456 | H92: Eg | I92: 877 | J92: 2925 | K92: -2048 | L92: -5733 | M92: OK | N92: 72 | O92: 658 | P92: 394 | Q92: 459
A93: 72 | B93: Erő | C93: 657 | D93: 395 | E93: 395 | F93: 395 | G93: 456 | H93: Iq | I93: 876 | J93: 2933 | K93: -2057 | L93: -7790 | M93: OK | N93: 73 | O93: 657 | P93: 395 | Q93: 459
A94: 73 | B94: Erő | C94: 656 | D94: 396 | E94: 395 | F94: 395 | G94: 456 | H94: Ügy | I94: 874 | J94: 2933 | K94: =I94-J94 -> -2059 | L94: -9849 | M94: OK | N94: 74 | O94: 656 | P94: 395 | Q94: 459
A95: 74 | B95: Erő | C95: 655 | D95: 396 | E95: 396 | F95: 395 | G95: 456 | H95: Eg | I95: 873 | J95: 2933 | K95: -2060 | L95: -11909 | M95: OK | N95: 75 | O95: 655 | P95: 395 | Q95: 459
A96: 75 | B96: Erő | C96: 654 | D96: 396 | E96: 396 | F96: 396 | G96: 456 | H96: Iq | I96: 872 | J96: 2940 | K96: -2068 | L96: -13977 | M96: OK | N96: 76 | O96: 654 | P96: 396 | Q96: 459
A97: 76 | B97: Erő | C97: 653 | D97: 397 | E97: 396 | F97: 396 | G97: 456 | H97: Ügy | I97: 870 | J97: 2940 | K97: -2070 | L97: -16047 | M97: OK | N97: 77 | O97: 653 | P97: 396 | Q97: 459
A98: 77 | B98: Erő | C98: 652 | D98: 397 | E98: 397 | F98: 396 | G98: 456 | H98: Eg | I98: 869 | J98: 2940 | K98: -2071 | L98: -18118 | M98: OK | N98: 78 | O98: 652 | P98: 396 | Q98: 459
A99: 78 | B99: Erő | C99: 651 | D99: 397 | E99: 397 | F99: 397 | G99: 456 | H99: Iq | I99: 868 | J99: 2948 | K99: -2080 | L99: -20198 | M99: OK | N99: 79 | O99: 651 | P99: 397 | Q99: 459
A100: 79 | B100: Erő | C100: 650 | D100: 398 | E100: 397 | F100: 397 | G100: 456 | H100: Ügy | I100: 866 | J100: 2948 | K100: -2082 | L100: -22280 | M100: OK | N100: 80 | O100: 650 | P100: 397 | Q100: 459
A101: 80 | B101: Erő | C101: 649 | D101: 398 | E101: 398 | F101: 397 | G101: 456 | H101: Eg | I101: 865 | J101: 2948 | K101: -2083 | L101: -24363 | M101: OK | N101: 81 | O101: 649 | P101: 397 | Q101: 459
A102: 81 | B102: Erő | C102: 648 | D102: 398 | E102: 398 | F102: 398 | G102: 456 | H102: Iq | I102: 864 | J102: 2955 | K102: -2091 | L102: -26454 | M102: OK | N102: 82 | O102: 648 | P102: 398 | Q102: 459
A103: 82 | B103: Erő | C103: 647 | D103: 399 | E103: 398 | F103: 398 | G103: 456 | H103: Ügy | I103: 862 | J103: 2955 | K103: -2093 | L103: -28547 | M103: OK | N103: 83 | O103: 647 | P103: 398 | Q103: 459
A104: 83 | B104: Erő | C104: 646 | D104: 399 | E104: 399 | F104: 398 | G104: 456 | H104: Eg | I104: 861 | J104: 2955 | K104: -2094 | L104: -30641 | M104: OK | N104: 84 | O104: 646 | P104: 398 | Q104: 459
A105: 84 | B105: Erő | C105: 645 | D105: 399 | E105: 399 | F105: 399 | G105: 456 | H105: Iq | I105: 860 | J105: 2962 | K105: -2102 | L105: -32743 | M105: OK | N105: 85 | O105: 645 | P105: 399 | Q105: 459
A106: 85 | B106: Erő | C106: 644 | D106: 400 | E106: 399 | F106: 399 | G106: 456 | H106: Ügy | I106: 858 | J106: 2962 | K106: -2104 | L106: -34847 | M106: OK | N106: 86 | O106: 644 | P106: 399 | Q106: 459
A107: 86 | B107: Erő | C107: 643 | D107: 400 | E107: 400 | F107: 399 | G107: 456 | H107: Eg | I107: 857 | J107: 2962 | K107: -2105 | L107: -36952 | M107: OK | N107: 87 | O107: 643 | P107: 399 | Q107: 459
A108: 87 | B108: Erő | C108: 642 | D108: 400 | E108: 400 | F108: 400 | G108: 456 | H108: Iq | I108: 856 | J108: 2970 | K108: -2114 | L108: -39066 | M108: OK | N108: 88 | O108: 642 | P108: 400 | Q108: 459
A109: 88 | B109: Erő | C109: 641 | D109: 401 | E109: 400 | F109: 400 | G109: 456 | H109: Ügy | I109: 854 | J109: 2970 | K109: -2116 | L109: -41182 | M109: OK | N109: 89 | O109: 641 | P109: 400 | Q109: 459
A110: 89 | B110: Erő | C110: 640 | D110: 401 | E110: 401 | F110: 400 | G110: 456 | H110: Eg | I110: 853 | J110: 2970 | K110: -2117 | L110: -43299 | M110: OK | N110: 90 | O110: 640 | P110: 400 | Q110: 459
A111: 90 | B111: Erő | C111: 639 | D111: 401 | E111: 401 | F111: 401 | G111: 456 | H111: Iq | I111: 852 | J111: 2977 | K111: -2125 | L111: -45424 | M111: OK | N111: 91 | O111: 639 | P111: 401 | Q111: 459
A112: 91 | B112: Erő | C112: 638 | D112: 402 | E112: 401 | F112: 401 | G112: 456 | H112: Ügy | I112: 850 | J112: 2977 | K112: -2127 | L112: -47551 | M112: OK | N112: 92 | O112: 638 | P112: 401 | Q112: 459
A113: 92 | B113: Erő | C113: 637 | D113: 402 | E113: 402 | F113: 401 | G113: 456 | H113: Eg | I113: 849 | J113: 2977 | K113: -2128 | L113: -49679 | M113: OK | N113: 93 | O113: 637 | P113: 401 | Q113: 459
A114: 93 | B114: Erő | C114: 636 | D114: 402 | E114: 402 | F114: 402 | G114: 456 | H114: Iq | I114: 848 | J114: 2985 | K114: -2137 | L114: -51816 | M114: OK | N114: 94 | O114: 636 | P114: 402 | Q114: 459
A115: 94 | B115: Erő | C115: 635 | D115: 403 | E115: 402 | F115: 402 | G115: 456 | H115: Ügy | I115: 846 | J115: 2985 | K115: -2139 | L115: -53955 | M115: OK | N115: 95 | O115: 635 | P115: 402 | Q115: 459
A116: 95 | B116: Erő | C116: 634 | D116: 403 | E116: 403 | F116: 402 | G116: 456 | H116: Eg | I116: 845 | J116: 2985 | K116: -2140 | L116: -56095 | M116: OK | N116: 96 | O116: 634 | P116: 402 | Q116: 459
A117: 96 | B117: Erő | C117: 633 | D117: 403 | E117: 403 | F117: 403 | G117: 456 | H117: Iq | I117: 844 | J117: 2992 | K117: -2148 | L117: -58243 | M117: OK | N117: 97 | O117: 633 | P117: 403 | Q117: 459
A118: 97 | B118: Erő | C118: 632 | D118: 404 | E118: 403 | F118: 403 | G118: 456 | H118: Ügy | I118: 842 | J118: 2992 | K118: -2150 | L118: -60393 | M118: OK | N118: 98 | O118: 632 | P118: 403 | Q118: 459
A119: 98 | B119: Erő | C119: 631 | D119: 404 | E119: 404 | F119: 403 | G119: 456 | H119: Eg | I119: 841 | J119: 2992 | K119: -2151 | L119: -62544 | M119: OK | N119: 99 | O119: 631 | P119: 403 | Q119: 459
A120: 99 | B120: Erő | C120: 630 | D120: 404 | E120: 404 | F120: 404 | G120: 456 | H120: Iq | I120: 840 | J120: 3000 | K120: -2160 | L120: -64704 | M120: OK | N120: 100 | O120: 630 | P120: 404 | Q120: 459
A121: 100 | B121: Erő | C121: 629 | D121: 405 | E121: 404 | F121: 404 | G121: 456 | H121: Ügy | I121: 838 | J121: 3000 | K121: -2162 | L121: -66866 | M121: OK | N121: 101 | O121: 629 | P121: 404 | Q121: 459
A122: 101 | B122: Erő | C122: 628 | D122: 405 | E122: 405 | F122: 404 | G122: 456 | H122: Eg | I122: 837 | J122: 3000 | K122: -2163 | L122: -69029 | M122: OK | N122: 102 | O122: 628 | P122: 404 | Q122: 459
A123: 102 | B123: Erő | C123: 627 | D123: 405 | E123: 405 | F123: 405 | G123: 456 | H123: Iq | I123: 836 | J123: 3007 | K123: -2171 | L123: -71200 | M123: OK | N123: 103 | O123: 627 | P123: 405 | Q123: 459
A124: 103 | B124: Erő | C124: 626 | D124: 406 | E124: 405 | F124: 405 | G124: 456 | H124: Ügy | I124: 834 | J124: 3007 | K124: -2173 | L124: -73373 | M124: OK | N124: 104 | O124: 626 | P124: 405 | Q124: 459
A125: 104 | B125: Erő | C125: 625 | D125: 406 | E125: 406 | F125: 405 | G125: 456 | H125: Eg | I125: 833 | J125: 3007 | K125: -2174 | L125: -75547 | M125: OK | N125: 105 | O125: 625 | P125: 405 | Q125: 459
A126: 105 | B126: Erő | C126: 624 | D126: 406 | E126: 406 | F126: 406 | G126: 456 | H126: Iq | I126: 832 | J126: 3014 | K126: -2182 | L126: -77729 | M126: OK | N126: 106 | O126: 624 | P126: 406 | Q126: 459
A127: 106 | B127: Erő | C127: 623 | D127: 407 | E127: 406 | F127: 406 | G127: 456 | H127: Ügy | I127: 830 | J127: 3014 | K127: -2184 | L127: -79913 | M127: OK | N127: 107 | O127: 623 | P127: 406 | Q127: 459
A128: 107 | B128: Erő | C128: 622 | D128: 407 | E128: 407 | F128: 406 | G128: 456 | H128: Eg | I128: 829 | J128: 3014 | K128: -2185 | L128: -82098 | M128: OK | N128: 108 | O128: 622 | P128: 406 | Q128: 459
A129: 108 | B129: Erő | C129: 621 | D129: 407 | E129: 407 | F129: 407 | G129: 456 | H129: Iq | I129: 828 | J129: 3022 | K129: -2194 | L129: -84292 | M129: OK | N129: 109 | O129: 621 | P129: 407 | Q129: 459
A130: 109 | B130: Erő | C130: 620 | D130: 408 | E130: 407 | F130: 407 | G130: 456 | H130: Ügy | I130: 826 | J130: 3022 | K130: -2196 | L130: -86488 | M130: OK | N130: 110 | O130: 620 | P130: 407 | Q130: 459
A131: 110 | B131: Erő | C131: 619 | D131: 408 | E131: 408 | F131: 407 | G131: 456 | H131: Eg | I131: 825 | J131: 3022 | K131: -2197 | L131: -88685 | M131: OK | N131: 111 | O131: 619 | P131: 407 | Q131: 459
A132: 111 | B132: Erő | C132: 618 | D132: 408 | E132: 408 | F132: 408 | G132: 456 | H132: Iq | I132: 824 | J132: 3029 | K132: -2205 | L132: -90890 | M132: OK | N132: 112 | O132: 618 | P132: 408 | Q132: 459
A133: 112 | B133: Erő | C133: 617 | D133: 409 | E133: 408 | F133: 408 | G133: 456 | H133: Ügy | I133: 822 | J133: 3029 | K133: -2207 | L133: -93097 | M133: OK | N133: 113 | O133: 617 | P133: 408 | Q133: 459
A134: 113 | B134: Erő | C134: 616 | D134: 409 | E134: 409 | F134: 408 | G134: 456 | H134: Eg | I134: 821 | J134: 3029 | K134: -2208 | L134: -95305 | M134: OK | N134: 114 | O134: 616 | P134: 408 | Q134: 459
A135: 114 | B135: Erő | C135: 615 | D135: 409 | E135: 409 | F135: 409 | G135: 456 | H135: Iq | I135: 820 | J135: 3037 | K135: -2217 | L135: -97522 | M135: OK | N135: 115 | O135: 615 | P135: 409 | Q135: 459
A136: 115 | B136: Erő | C136: 614 | D136: 410 | E136: 409 | F136: 409 | G136: 456 | H136: Ügy | I136: 818 | J136: 3037 | K136: -2219 | L136: -99741 | M136: OK | N136: 116 | O136: 614 | P136: 409 | Q136: 459
A137: 116 | B137: Erő | C137: 613 | D137: 410 | E137: 410 | F137: 409 | G137: 456 | H137: Eg | I137: 817 | J137: 3037 | K137: -2220 | L137: -101961 | M137: OK | N137: 117 | O137: 613 | P137: 409 | Q137: 459
A138: 117 | B138: Erő | C138: 612 | D138: 410 | E138: 410 | F138: 410 | G138: 456 | H138: Iq | I138: 816 | J138: 3044 | K138: -2228 | L138: -104189 | M138: OK | N138: 118 | O138: 612 | P138: 410 | Q138: 459
A139: 118 | B139: Erő | C139: 611 | D139: 411 | E139: 410 | F139: 410 | G139: 456 | H139: Ügy | I139: 814 | J139: 3044 | K139: -2230 | L139: -106419 | M139: OK | N139: 119 | O139: 611 | P139: 410 | Q139: 459
A140: 119 | B140: Erő | C140: 610 | D140: 411 | E140: 411 | F140: 410 | G140: 456 | H140: Eg | I140: 813 | J140: 3044 | K140: -2231 | L140: -108650 | M140: OK | N140: 120 | O140: 610 | P140: 410 | Q140: 459
A141: 120 | B141: Erő | C141: 609 | D141: 411 | E141: 411 | F141: 411 | G141: 456 | H141: Iq | I141: 812 | J141: 3051 | K141: -2239 | L141: -110889 | M141: OK | N141: 121 | O141: 609 | P141: 411 | Q141: 459
A142: 121 | B142: Erő | C142: 608 | D142: 412 | E142: 411 | F142: 411 | G142: 456 | H142: Ügy | I142: 810 | J142: 3051 | K142: -2241 | L142: -113130 | M142: OK | N142: 122 | O142: 608 | P142: 411 | Q142: 459
A143: 122 | B143: Erő | C143: 607 | D143: 412 | E143: 412 | F143: 411 | G143: 456 | H143: Eg | I143: 809 | J143: 3051 | K143: -2242 | L143: -115372 | M143: OK | N143: 123 | O143: 607 | P143: 411 | Q143: 459
A144: 123 | B144: Erő | C144: 606 | D144: 412 | E144: 412 | F144: 412 | G144: 456 | H144: Iq | I144: 808 | J144: 3059 | K144: -2251 | L144: -117623 | M144: OK | N144: 124 | O144: 606 | P144: 412 | Q144: 459
A145: 124 | B145: Erő | C145: 605 | D145: 413 | E145: 412 | F145: 412 | G145: 456 | H145: Ügy | I145: 806 | J145: 3059 | K145: -2253 | L145: -119876 | M145: OK | N145: 125 | O145: 605 | P145: 412 | Q145: 459
A146: 125 | B146: Erő | C146: 604 | D146: 413 | E146: 413 | F146: 412 | G146: 456 | H146: Eg | I146: 805 | J146: 3059 | K146: -2254 | L146: -122130 | M146: OK | N146: 126 | O146: 604 | P146: 412 | Q146: 459
A147: 126 | B147: Erő | C147: 603 | D147: 413 | E147: 413 | F147: 413 | G147: 456 | H147: Iq | I147: 804 | J147: 3066 | K147: -2262 | L147: -124392 | M147: OK | N147: 127 | O147: 603 | P147: 413 | Q147: 459
A148: 127 | B148: Erő | C148: 602 | D148: 414 | E148: 413 | F148: 413 | G148: 456 | H148: Ügy | I148: 802 | J148: 3066 | K148: -2264 | L148: -126656 | M148: OK | N148: 128 | O148: 602 | P148: 413 | Q148: 459
A149: 128 | B149: Erő | C149: 601 | D149: 414 | E149: 414 | F149: 413 | G149: 456 | H149: =IF(MIN(C149:G149)=C149,"Erő",IF(MIN(C149:G149)=D149,"Iq",IF(MIN(C149:G149)=E149,"Ügy",IF(MIN(C149:G149)=F149,"Eg","Szer")))) -> Eg | I149: 801 | J149: 3066 | K149: -2265 | L149: -128921 | M149: OK | N149: 129 | O149: 601 | P149: 413 | Q149: 459
A150: 129 | B150: Erő | C150: =IF($B149="Erő",C149-1,IF($H149="Erő",C149+1,C149)) -> 600 | D150: =IF($B149="Iq",D149-1,IF($H149="Iq",D149+1,D149)) -> 414 | E150: =IF($B149="Ügy",E149-1,IF($H149="Ügy",E149+1,E149)) -> 414 | F150: =IF($B149="Eg",F149-1,IF($H149="Eg",F149+1,F149)) -> 414 | G150: =IF($B149="Szer",G149-1,IF($H149="Szer",G149+1,G149)) -> 456 | H150: Iq | I150: =ROUNDDOWN(IF(B150=$C$20,C150,IF(B150=$D$20,D150,IF(B150=$E$20,E150,IF(B150=$F$20,F150,G150))))*10/IF(B150=$C$20,IF(C150>700,1.3,HLOOKUP(B150,$D$1:$H$12,12,0)),HLOOKUP(B150,$D$1:$H$12,12,0)),0) -> 800 | J150: =ROUNDDOWN(IF(H150=$C$20,C150+1,IF(H150=$D$20,D150+1,IF(H150=$E$20,E150+1,IF(H150=$F$20,F150+1,G150+1))))*10/HLOOKUP(H150,$D$1:$H$12,12,0),0) -> 3074 | K150: -2274 | L150: =K150+L149 -> -131195 | M150: =IF(L150<-400000,"STOP",IF(O150<=P150+1,"STOP","OK")) -> OK | N150: =A151 -> 130 | O150: =MAX(C150:G150) -> 600 | P150: =MIN(C150:G150) -> 414 | Q150: =ROUNDDOWN(AVERAGE(C150:G150),0) -> 459
A151: 130 | B151: =IF(MAX(C151:G151)=C151,"Erő",IF(MAX(C151:G151)=D151,"Iq",IF(MAX(C151:G151)=E151,"Ügy",IF(MAX(C151:G151)=F151,"Eg","Szer")))) -> Erő | C151: 599 | D151: 415 | E151: 414 | F151: 414 | G151: 456 | H151: Ügy | I151: 798 | J151: 3074 | K151: -2276 | L151: -133471 | M151: OK | N151: 131 | O151: 599 | P151: 414 | Q151: 459
A152: 131 | B152: Erő | C152: 598 | D152: 415 | E152: 415 | F152: 414 | G152: 456 | H152: Eg | I152: 797 | J152: 3074 | K152: -2277 | L152: -135748 | M152: OK | N152: 132 | O152: 598 | P152: 414 | Q152: 459
A153: 132 | B153: Erő | C153: 597 | D153: 415 | E153: 415 | F153: 415 | G153: 456 | H153: Iq | I153: 796 | J153: 3081 | K153: -2285 | L153: -138033 | M153: OK | N153: 133 | O153: 597 | P153: 415 | Q153: 459
A154: 133 | B154: Erő | C154: 596 | D154: 416 | E154: 415 | F154: 415 | G154: 456 | H154: Ügy | I154: 794 | J154: 3081 | K154: -2287 | L154: -140320 | M154: OK | N154: 134 | O154: 596 | P154: 415 | Q154: 459
A155: 134 | B155: Erő | C155: 595 | D155: 416 | E155: 416 | F155: 415 | G155: 456 | H155: Eg | I155: 793 | J155: 3081 | K155: -2288 | L155: -142608 | M155: OK | N155: 135 | O155: 595 | P155: 415 | Q155: 459
A156: 135 | B156: Erő | C156: 594 | D156: 416 | E156: 416 | F156: 416 | G156: 456 | H156: Iq | I156: 792 | J156: 3088 | K156: -2296 | L156: -144904 | M156: OK | N156: 136 | O156: 594 | P156: 416 | Q156: 459
A157: 136 | B157: Erő | C157: 593 | D157: 417 | E157: 416 | F157: 416 | G157: 456 | H157: Ügy | I157: 790 | J157: 3088 | K157: -2298 | L157: -147202 | M157: OK | N157: 137 | O157: 593 | P157: 416 | Q157: 459
A158: 137 | B158: Erő | C158: 592 | D158: 417 | E158: 417 | F158: 416 | G158: 456 | H158: Eg | I158: 789 | J158: 3088 | K158: =I158-J158 -> -2299 | L158: -149501 | M158: OK | N158: 138 | O158: 592 | P158: 416 | Q158: 459
A159: 138 | B159: Erő | C159: 591 | D159: 417 | E159: 417 | F159: 417 | G159: 456 | H159: Iq | I159: 788 | J159: 3096 | K159: -2308 | L159: -151809 | M159: OK | N159: 139 | O159: 591 | P159: 417 | Q159: 459
A160: 139 | B160: Erő | C160: 590 | D160: 418 | E160: 417 | F160: 417 | G160: 456 | H160: Ügy | I160: 786 | J160: 3096 | K160: -2310 | L160: -154119 | M160: OK | N160: 140 | O160: 590 | P160: 417 | Q160: 459
A161: 140 | B161: Erő | C161: 589 | D161: 418 | E161: 418 | F161: 417 | G161: 456 | H161: Eg | I161: 785 | J161: 3096 | K161: -2311 | L161: -156430 | M161: OK | N161: 141 | O161: 589 | P161: 417 | Q161: 459
A162: 141 | B162: Erő | C162: 588 | D162: 418 | E162: 418 | F162: 418 | G162: 456 | H162: Iq | I162: 784 | J162: 3103 | K162: -2319 | L162: -158749 | M162: OK | N162: 142 | O162: 588 | P162: 418 | Q162: 459
A163: 142 | B163: Erő | C163: 587 | D163: 419 | E163: 418 | F163: 418 | G163: 456 | H163: Ügy | I163: 782 | J163: 3103 | K163: -2321 | L163: -161070 | M163: OK | N163: 143 | O163: 587 | P163: 418 | Q163: 459
A164: 143 | B164: Erő | C164: 586 | D164: 419 | E164: 419 | F164: 418 | G164: 456 | H164: Eg | I164: 781 | J164: 3103 | K164: -2322 | L164: -163392 | M164: OK | N164: 144 | O164: 586 | P164: 418 | Q164: 459
A165: 144 | B165: Erő | C165: 585 | D165: 419 | E165: 419 | F165: 419 | G165: 456 | H165: Iq | I165: 780 | J165: 3111 | K165: -2331 | L165: -165723 | M165: OK | N165: 145 | O165: 585 | P165: 419 | Q165: 459
A166: 145 | B166: Erő | C166: 584 | D166: 420 | E166: 419 | F166: 419 | G166: 456 | H166: Ügy | I166: 778 | J166: 3111 | K166: -2333 | L166: -168056 | M166: OK | N166: 146 | O166: 584 | P166: 419 | Q166: 459
A167: 146 | B167: Erő | C167: 583 | D167: 420 | E167: 420 | F167: 419 | G167: 456 | H167: Eg | I167: 777 | J167: 3111 | K167: -2334 | L167: -170390 | M167: OK | N167: 147 | O167: 583 | P167: 419 | Q167: 459
A168: 147 | B168: Erő | C168: 582 | D168: 420 | E168: 420 | F168: 420 | G168: 456 | H168: Iq | I168: 776 | J168: 3118 | K168: -2342 | L168: -172732 | M168: OK | N168: 148 | O168: 582 | P168: 420 | Q168: 459
A169: 148 | B169: Erő | C169: 581 | D169: 421 | E169: 420 | F169: 420 | G169: 456 | H169: Ügy | I169: 774 | J169: 3118 | K169: -2344 | L169: -175076 | M169: OK | N169: 149 | O169: 581 | P169: 420 | Q169: 459
A170: 149 | B170: Erő | C170: 580 | D170: 421 | E170: 421 | F170: 420 | G170: 456 | H170: Eg | I170: 773 | J170: 3118 | K170: -2345 | L170: -177421 | M170: OK | N170: 150 | O170: 580 | P170: 420 | Q170: 459
A171: 150 | B171: Erő | C171: 579 | D171: 421 | E171: 421 | F171: 421 | G171: 456 | H171: Iq | I171: 772 | J171: 3125 | K171: -2353 | L171: -179774 | M171: OK | N171: 151 | O171: 579 | P171: 421 | Q171: 459
A172: 151 | B172: Erő | C172: 578 | D172: 422 | E172: 421 | F172: 421 | G172: 456 | H172: Ügy | I172: 770 | J172: 3125 | K172: -2355 | L172: -182129 | M172: OK | N172: 152 | O172: 578 | P172: 421 | Q172: 459
A173: 152 | B173: Erő | C173: 577 | D173: 422 | E173: 422 | F173: 421 | G173: 456 | H173: Eg | I173: 769 | J173: 3125 | K173: -2356 | L173: -184485 | M173: OK | N173: 153 | O173: 577 | P173: 421 | Q173: 459
A174: 153 | B174: Erő | C174: 576 | D174: 422 | E174: 422 | F174: 422 | G174: 456 | H174: Iq | I174: 768 | J174: 3133 | K174: -2365 | L174: -186850 | M174: OK | N174: 154 | O174: 576 | P174: 422 | Q174: 459
A175: 154 | B175: Erő | C175: 575 | D175: 423 | E175: 422 | F175: 422 | G175: 456 | H175: Ügy | I175: 766 | J175: 3133 | K175: -2367 | L175: -189217 | M175: OK | N175: 155 | O175: 575 | P175: 422 | Q175: 459
A176: 155 | B176: Erő | C176: 574 | D176: 423 | E176: 423 | F176: 422 | G176: 456 | H176: Eg | I176: 765 | J176: 3133 | K176: -2368 | L176: -191585 | M176: OK | N176: 156 | O176: 574 | P176: 422 | Q176: 459
A177: 156 | B177: Erő | C177: 573 | D177: 423 | E177: 423 | F177: 423 | G177: 456 | H177: Iq | I177: 764 | J177: 3140 | K177: -2376 | L177: -193961 | M177: OK | N177: 157 | O177: 573 | P177: 423 | Q177: 459
A178: 157 | B178: Erő | C178: 572 | D178: 424 | E178: 423 | F178: 423 | G178: 456 | H178: Ügy | I178: 762 | J178: 3140 | K178: -2378 | L178: -196339 | M178: OK | N178: 158 | O178: 572 | P178: 423 | Q178: 459
A179: 158 | B179: Erő | C179: 571 | D179: 424 | E179: 424 | F179: 423 | G179: 456 | H179: Eg | I179: 761 | J179: 3140 | K179: -2379 | L179: -198718 | M179: OK | N179: 159 | O179: 571 | P179: 423 | Q179: 459
A180: 159 | B180: Erő | C180: 570 | D180: 424 | E180: 424 | F180: 424 | G180: 456 | H180: Iq | I180: 760 | J180: 3148 | K180: -2388 | L180: -201106 | M180: OK | N180: 160 | O180: 570 | P180: 424 | Q180: 459
A181: 160 | B181: Erő | C181: 569 | D181: 425 | E181: 424 | F181: 424 | G181: 456 | H181: Ügy | I181: 758 | J181: 3148 | K181: -2390 | L181: -203496 | M181: OK | N181: 161 | O181: 569 | P181: 424 | Q181: 459
A182: 161 | B182: Erő | C182: 568 | D182: 425 | E182: 425 | F182: 424 | G182: 456 | H182: Eg | I182: 757 | J182: 3148 | K182: -2391 | L182: -205887 | M182: OK | N182: 162 | O182: 568 | P182: 424 | Q182: 459
A183: 162 | B183: Erő | C183: 567 | D183: 425 | E183: 425 | F183: 425 | G183: 456 | H183: Iq | I183: 756 | J183: 3155 | K183: -2399 | L183: -208286 | M183: OK | N183: 163 | O183: 567 | P183: 425 | Q183: 459
A184: 163 | B184: Erő | C184: 566 | D184: 426 | E184: 425 | F184: 425 | G184: 456 | H184: Ügy | I184: 754 | J184: 3155 | K184: -2401 | L184: -210687 | M184: OK | N184: 164 | O184: 566 | P184: 425 | Q184: 459
A185: 164 | B185: Erő | C185: 565 | D185: 426 | E185: 426 | F185: 425 | G185: 456 | H185: Eg | I185: 753 | J185: 3155 | K185: -2402 | L185: -213089 | M185: OK | N185: 165 | O185: 565 | P185: 425 | Q185: 459
A186: 165 | B186: Erő | C186: 564 | D186: 426 | E186: 426 | F186: 426 | G186: 456 | H186: Iq | I186: 752 | J186: 3162 | K186: -2410 | L186: -215499 | M186: OK | N186: 166 | O186: 564 | P186: 426 | Q186: 459
A187: 166 | B187: Erő | C187: 563 | D187: 427 | E187: 426 | F187: 426 | G187: 456 | H187: Ügy | I187: 750 | J187: 3162 | K187: -2412 | L187: -217911 | M187: OK | N187: 167 | O187: 563 | P187: 426 | Q187: 459
A188: 167 | B188: Erő | C188: 562 | D188: 427 | E188: 427 | F188: 426 | G188: 456 | H188: Eg | I188: 749 | J188: 3162 | K188: -2413 | L188: -220324 | M188: OK | N188: 168 | O188: 562 | P188: 426 | Q188: 459
A189: 168 | B189: Erő | C189: 561 | D189: 427 | E189: 427 | F189: 427 | G189: 456 | H189: Iq | I189: 748 | J189: 3170 | K189: -2422 | L189: -222746 | M189: OK | N189: 169 | O189: 561 | P189: 427 | Q189: 459
A190: 169 | B190: Erő | C190: 560 | D190: 428 | E190: 427 | F190: 427 | G190: 456 | H190: Ügy | I190: 746 | J190: 3170 | K190: -2424 | L190: -225170 | M190: OK | N190: 170 | O190: 560 | P190: 427 | Q190: 459
A191: 170 | B191: Erő | C191: 559 | D191: 428 | E191: 428 | F191: 427 | G191: 456 | H191: Eg | I191: 745 | J191: 3170 | K191: -2425 | L191: -227595 | M191: OK | N191: 171 | O191: 559 | P191: 427 | Q191: 459
A192: 171 | B192: Erő | C192: 558 | D192: 428 | E192: 428 | F192: 428 | G192: 456 | H192: Iq | I192: 744 | J192: 3177 | K192: -2433 | L192: -230028 | M192: OK | N192: 172 | O192: 558 | P192: 428 | Q192: 459
A193: 172 | B193: Erő | C193: 557 | D193: 429 | E193: 428 | F193: 428 | G193: 456 | H193: Ügy | I193: 742 | J193: 3177 | K193: -2435 | L193: -232463 | M193: OK | N193: 173 | O193: 557 | P193: 428 | Q193: 459
A194: 173 | B194: Erő | C194: 556 | D194: 429 | E194: 429 | F194: 428 | G194: 456 | H194: Eg | I194: 741 | J194: 3177 | K194: -2436 | L194: -234899 | M194: OK | N194: 174 | O194: 556 | P194: 428 | Q194: 459
A195: 174 | B195: Erő | C195: 555 | D195: 429 | E195: 429 | F195: 429 | G195: 456 | H195: Iq | I195: 740 | J195: 3185 | K195: -2445 | L195: -237344 | M195: OK | N195: 175 | O195: 555 | P195: 429 | Q195: 459
A196: 175 | B196: Erő | C196: 554 | D196: 430 | E196: 429 | F196: 429 | G196: 456 | H196: Ügy | I196: 738 | J196: 3185 | K196: -2447 | L196: -239791 | M196: OK | N196: 176 | O196: 554 | P196: 429 | Q196: 459
A197: 176 | B197: Erő | C197: 553 | D197: 430 | E197: 430 | F197: 429 | G197: 456 | H197: Eg | I197: 737 | J197: 3185 | K197: -2448 | L197: -242239 | M197: OK | N197: 177 | O197: 553 | P197: 429 | Q197: 459
A198: 177 | B198: Erő | C198: 552 | D198: 430 | E198: 430 | F198: 430 | G198: 456 | H198: Iq | I198: 736 | J198: 3192 | K198: -2456 | L198: -244695 | M198: OK | N198: 178 | O198: 552 | P198: 430 | Q198: 459
A199: 178 | B199: Erő | C199: 551 | D199: 431 | E199: 430 | F199: 430 | G199: 456 | H199: Ügy | I199: 734 | J199: 3192 | K199: -2458 | L199: -247153 | M199: OK | N199: 179 | O199: 551 | P199: 430 | Q199: 459
A200: 179 | B200: Erő | C200: 550 | D200: 431 | E200: 431 | F200: 430 | G200: 456 | H200: Eg | I200: 733 | J200: 3192 | K200: -2459 | L200: -249612 | M200: OK | N200: 180 | O200: 550 | P200: 430 | Q200: 459
A201: 180 | B201: Erő | C201: 549 | D201: 431 | E201: 431 | F201: 431 | G201: 456 | H201: Iq | I201: 732 | J201: 3200 | K201: -2468 | L201: -252080 | M201: OK | N201: 181 | O201: 549 | P201: 431 | Q201: 459
A202: 181 | B202: Erő | C202: 548 | D202: 432 | E202: 431 | F202: 431 | G202: 456 | H202: Ügy | I202: 730 | J202: 3200 | K202: -2470 | L202: -254550 | M202: OK | N202: 182 | O202: 548 | P202: 431 | Q202: 459
... 219 more rows
